[Event "*** SCC Grand Prix: Titled Tuesday Blitz"]
[Site "Chess.com"]
[Date "2020.07.14"]
[Round "9"]
[White "arminmusovic"]
[Black "sotochess"]
[Result "1-0"]
[WhiteElo "2558"]
[BlackElo "2432"]
[TimeControl "180+1"]
[EndTime "11:45:23 PDT"]
[Termination "arminmusovic won by resignation"]

1. a3 {[%clk 0:03:00.9]} 1... Nf6 {[%clk 0:02:58.7]} 2. Nc3 {[%clk 0:03:01.8]}
2... d5 {[%clk 0:02:58.4]} 3. d3 {[%clk 0:03:01.9]} 3... d4 {[%clk 0:02:57.8]}
4. Ne4 {[%clk 0:03:02.3]} 4... Nxe4 {[%clk 0:02:56.9]} 5. dxe4 {[%clk
0:03:03.2]} 5... Nc6 {[%clk 0:02:57.1]} 6. Nf3 {[%clk 0:03:04.1]} 6... g6 {[%clk
0:02:50.5]} 7. e3 {[%clk 0:03:02.2]} 7... Bg7 {[%clk 0:02:49.9]} 8. Bb5 {[%clk
0:02:59.2]} 8... e5 {[%clk 0:02:33.5]} 9. exd4 {[%clk 0:02:51.2]} 9... exd4
{[%clk 0:02:32.6]} 10. O-O {[%clk 0:02:47.6]} 10... O-O {[%clk 0:02:31.5]} 11.
h3 {[%clk 0:02:45.8]} 11... h6 {[%clk 0:02:21.6]} 12. Re1 {[%clk 0:02:43.2]}
12... Be6 {[%clk 0:02:16.4]} 13. Bf4 {[%clk 0:02:41]} 13... g5 {[%clk
0:02:13.7]} 14. Bg3 {[%clk 0:02:34.2]} 14... Ne7 {[%clk 0:02:12.9]} 15. Qd3
{[%clk 0:02:22.4]} 15... Ng6 {[%clk 0:02:10]} 16. b4 {[%clk 0:02:16.4]} 16... a5
{[%clk 0:02:04.2]} 17. Rad1 {[%clk 0:02:12.7]} 17... axb4 {[%clk 0:02:03.2]} 18.
axb4 {[%clk 0:02:13.6]} 18... g4 {[%clk 0:01:54.5]} 19. Nxd4 {[%clk 0:02:03.5]}
19... Bxd4 {[%clk 0:01:53.6]} 20. Qxd4 {[%clk 0:02:03.3]} 20... Qxd4 {[%clk
0:01:52.6]} 21. Rxd4 {[%clk 0:02:04.2]} 21... c6 {[%clk 0:01:44.7]} 22. Bf1
{[%clk 0:02:00.5]} 22... gxh3 {[%clk 0:01:42.6]} 23. gxh3 {[%clk 0:02:01.4]}
23... Ra2 {[%clk 0:01:42.5]} 24. c4 {[%clk 0:01:57.3]} 24... Rb2 {[%clk
0:01:39.6]} 25. h4 {[%clk 0:01:56.2]} 25... Ra8 {[%clk 0:01:32.8]} 26. h5 {[%clk
0:01:54.2]} 26... Nf8 {[%clk 0:01:32]} 27. b5 {[%clk 0:01:36.2]} 27... Bg4
{[%clk 0:01:16.9]} 28. bxc6 {[%clk 0:01:16.4]} 28... bxc6 {[%clk 0:01:13.9]} 29.
Rd6 {[%clk 0:01:16.6]} 29... Bxh5 {[%clk 0:01:11.3]} 30. Rxh6 {[%clk 0:01:11.7]}
30... Bg6 {[%clk 0:01:11]} 31. Be5 {[%clk 0:01:11.2]} 31... Nh7 {[%clk
0:01:09.8]} 32. Bxb2 {[%clk 0:01:09]} 1-0

[Event "*** SCC Grand Prix: Titled Tuesday Blitz"]
[Site "Chess.com"]
[Date "2020.07.14"]
[Round "9"]
[White "LimaRR"]
[Black "Boudicca64"]
[Result "1-0"]
[WhiteElo "2058"]
[BlackElo "1789"]
[TimeControl "180+1"]
[EndTime "11:45:25 PDT"]
[Termination "LimaRR won by resignation"]

1. e4 {[%clk 0:03:00]} 1... c5 {[%clk 0:02:56.4]} 2. Nf3 {[%clk 0:02:59.8]} 2...
e6 {[%clk 0:02:55.3]} 3. d4 {[%clk 0:02:59.6]} 3... cxd4 {[%clk 0:02:54.5]} 4.
Nxd4 {[%clk 0:03:00.5]} 4... a6 {[%clk 0:02:53.8]} 5. Nc3 {[%clk 0:02:59.6]}
5... g6 {[%clk 0:02:52.8]} 6. Be3 {[%clk 0:02:56.9]} 6... Bg7 {[%clk 0:02:51.2]}
7. Qd2 {[%clk 0:02:56.9]} 7... Nc6 {[%clk 0:02:49.8]} 8. O-O-O {[%clk
0:02:56.4]} 8... Nge7 {[%clk 0:02:46.9]} 9. h4 {[%clk 0:02:55.6]} 9... d5 {[%clk
0:02:44.8]} 10. f3 {[%clk 0:02:33.8]} 10... dxe4 {[%clk 0:02:39.7]} 11. Nxe4
{[%clk 0:02:33.3]} 11... Nxd4 {[%clk 0:02:37.5]} 12. Bxd4 {[%clk 0:02:32.7]}
12... Bxd4 {[%clk 0:02:24.2]} 13. Qxd4 {[%clk 0:02:33.3]} 13... Qxd4 {[%clk
0:02:23.4]} 14. Rxd4 {[%clk 0:02:34.2]} 14... O-O {[%clk 0:02:19.8]} 15. h5
{[%clk 0:02:32.1]} 15... Nc6 {[%clk 0:01:47.1]} 16. Rd2 {[%clk 0:02:28.2]} 16...
f5 {[%clk 0:01:45.4]} 17. Nd6 {[%clk 0:02:24.3]} 17... g5 {[%clk 0:01:36.8]} 18.
Bc4 {[%clk 0:02:17.6]} 18... Ne5 {[%clk 0:01:30.9]} 19. Bb3 {[%clk 0:02:12.4]}
19... Bd7 {[%clk 0:00:45.7]} 20. Re1 {[%clk 0:02:05]} 20... Nf7 {[%clk
0:00:30.5]} 21. Nxb7 {[%clk 0:01:38]} 21... Bc6 {[%clk 0:00:17.7]} 22. Nc5
{[%clk 0:01:34.1]} 22... Rae8 {[%clk 0:00:13.7]} 23. Nxe6 {[%clk 0:01:31.9]} 1-0

[Event "*** SCC Grand Prix: Titled Tuesday Blitz"]
[Site "Chess.com"]
[Date "2020.07.14"]
[Round "9"]
[White "Zablotsky"]
[Black "Igor_Lysyj"]
[Result "1-0"]
[WhiteElo "2620"]
[BlackElo "2796"]
[TimeControl "180+1"]
[EndTime "11:45:33 PDT"]
[Termination "Zablotsky won by resignation"]

1. d4 {[%clk 0:03:00.9]} 1... d5 {[%clk 0:02:59.4]} 2. f3 {[%clk 0:03:01.8]}
2... c5 {[%clk 0:02:56.2]} 3. e4 {[%clk 0:03:02.7]} 3... cxd4 {[%clk 0:02:53]}
4. Qxd4 {[%clk 0:03:02.6]} 4... e6 {[%clk 0:02:45.9]} 5. Nc3 {[%clk 0:03:03]}
5... Nc6 {[%clk 0:02:45.2]} 6. Bb5 {[%clk 0:03:02.3]} 6... Bd7 {[%clk
0:02:44.1]} 7. Bxc6 {[%clk 0:03:02]} 7... bxc6 {[%clk 0:02:43.9]} 8. Nge2 {[%clk
0:03:01.5]} 8... c5 {[%clk 0:02:42]} 9. Qd3 {[%clk 0:03:01.3]} 9... d4 {[%clk
0:02:42.1]} 10. Nb1 {[%clk 0:03:00.9]} 10... Ne7 {[%clk 0:02:40.2]} 11. Nd2
{[%clk 0:03:01.8]} 11... Nc6 {[%clk 0:02:39.8]} 12. Nc4 {[%clk 0:03:01.6]} 12...
Nb4 {[%clk 0:02:38.4]} 13. Qb3 {[%clk 0:03:01.5]} 13... a5 {[%clk 0:02:27.1]}
14. a4 {[%clk 0:03:00.9]} 14... Rb8 {[%clk 0:02:23.3]} 15. Bf4 {[%clk 0:02:51]}
15... Rb7 {[%clk 0:02:19]} 16. O-O {[%clk 0:02:47.4]} 16... Qa8 {[%clk 0:02:11]}
17. Bd2 {[%clk 0:02:46.9]} 17... Be7 {[%clk 0:02:08.2]} 18. Bxb4 {[%clk
0:02:46.5]} 18... Rxb4 {[%clk 0:02:06.7]} 19. Qd3 {[%clk 0:02:46]} 19... O-O
{[%clk 0:02:03.1]} 20. b3 {[%clk 0:02:45.8]} 20... Bc8 {[%clk 0:01:53.1]} 21.
Qd1 {[%clk 0:02:31.5]} 21... Ba6 {[%clk 0:01:51.2]} 22. Ne5 {[%clk 0:02:29.4]}
22... Rd8 {[%clk 0:01:46.9]} 23. Nd3 {[%clk 0:02:29.1]} 23... Rbb8 {[%clk
0:01:45.6]} 24. Ng3 {[%clk 0:02:27.6]} 24... c4 {[%clk 0:01:41.7]} 25. bxc4
{[%clk 0:02:27.2]} 25... Bxc4 {[%clk 0:01:41.7]} 26. f4 {[%clk 0:02:27]} 26...
Bh4 {[%clk 0:01:35.3]} 27. Re1 {[%clk 0:02:26.6]} 27... Qa6 {[%clk 0:01:27.8]}
28. Qg4 {[%clk 0:02:25.9]} 28... Bxg3 {[%clk 0:01:27.3]} 29. Qxg3 {[%clk
0:02:25.2]} 29... Bxd3 {[%clk 0:01:23.1]} 30. cxd3 {[%clk 0:02:24.8]} 30... Rb3
{[%clk 0:01:22.3]} 31. Rad1 {[%clk 0:02:23.9]} 31... Qd6 {[%clk 0:01:15.3]} 32.
Qg5 {[%clk 0:02:23.1]} 32... Qc7 {[%clk 0:01:08.3]} 33. Qg4 {[%clk 0:02:20]}
33... Qe7 {[%clk 0:00:44.6]} 34. Qh5 {[%clk 0:02:19.6]} 34... Ra8 {[%clk
0:00:35.6]} 35. Rf1 {[%clk 0:02:18.7]} 35... g6 {[%clk 0:00:35.4]} 36. Qe5
{[%clk 0:02:18.3]} 36... Qd7 {[%clk 0:00:23.8]} 37. f5 {[%clk 0:02:11.4]} 37...
exf5 {[%clk 0:00:22.1]} 38. exf5 {[%clk 0:02:11.3]} 38... Re8 {[%clk 0:00:21.1]}
39. Qxa5 {[%clk 0:02:11]} 39... Rb2 {[%clk 0:00:21.1]} 40. Rde1 {[%clk
0:02:10.5]} 40... Rxe1 {[%clk 0:00:19.5]} 41. Rxe1 {[%clk 0:02:10.6]} 41... Qxf5
{[%clk 0:00:17.6]} 42. Qxf5 {[%clk 0:02:09.9]} 42... gxf5 {[%clk 0:00:17.3]} 43.
Ra1 {[%clk 0:02:09.5]} 43... Rb6 {[%clk 0:00:16]} 44. a5 {[%clk 0:02:09.3]}
44... Ra6 {[%clk 0:00:16.4]} 45. Kf2 {[%clk 0:02:07.7]} 45... Kg7 {[%clk
0:00:16.8]} 46. Kf3 {[%clk 0:02:07.4]} 46... Kf6 {[%clk 0:00:17]} 47. Kf4 {[%clk
0:02:07.3]} 1-0

[Event "*** SCC Grand Prix: Titled Tuesday Blitz"]
[Site "Chess.com"]
[Date "2020.07.14"]
[Round "9"]
[White "pfalcon1949"]
[Black "Ze-Pequeno"]
[Result "0-1"]
[WhiteElo "2055"]
[BlackElo "2245"]
[TimeControl "180+1"]
[EndTime "11:45:35 PDT"]
[Termination "Ze-Pequeno won by resignation"]

1. d4 {[%clk 0:03:00.9]} 1... Nf6 {[%clk 0:02:59.1]} 2. c4 {[%clk 0:03:01.4]}
2... g6 {[%clk 0:02:57.4]} 3. Nc3 {[%clk 0:03:01.5]} 3... d5 {[%clk 0:02:57.1]}
4. cxd5 {[%clk 0:02:59.4]} 4... Nxd5 {[%clk 0:02:57.1]} 5. e4 {[%clk 0:03:00.3]}
5... Nxc3 {[%clk 0:02:57.1]} 6. bxc3 {[%clk 0:03:01.2]} 6... Bg7 {[%clk
0:02:57.5]} 7. Bc4 {[%clk 0:03:01.4]} 7... c5 {[%clk 0:02:57.4]} 8. Ne2 {[%clk
0:03:01.7]} 8... Nc6 {[%clk 0:02:57]} 9. Be3 {[%clk 0:03:01.7]} 9... O-O {[%clk
0:02:56.4]} 10. O-O {[%clk 0:03:01.8]} 10... b6 {[%clk 0:02:51]} 11. dxc5 {[%clk
0:02:51.9]} 11... Qc7 {[%clk 0:02:49.3]} 12. Nd4 {[%clk 0:02:46.3]} 12... Na5
{[%clk 0:02:23.1]} 13. Be2 {[%clk 0:02:30.8]} 13... bxc5 {[%clk 0:02:05.7]} 14.
Nb5 {[%clk 0:02:27.3]} 14... Qc6 {[%clk 0:02:05.4]} 15. Qd2 {[%clk 0:02:21.4]}
15... Be6 {[%clk 0:01:47.8]} 16. f4 {[%clk 0:02:12.1]} 16... Nc4 {[%clk
0:01:45.4]} 17. Bxc4 {[%clk 0:01:59.1]} 17... Bxc4 {[%clk 0:01:43.9]} 18. Na3
{[%clk 0:01:53.9]} 18... Bxf1 {[%clk 0:01:42.3]} 19. Rxf1 {[%clk 0:01:52.5]}
19... Qxe4 {[%clk 0:01:27.7]} 20. Bxc5 {[%clk 0:01:50.5]} 20... Rfd8 {[%clk
0:01:27.2]} 21. Qc1 {[%clk 0:01:38.1]} 21... Rdc8 {[%clk 0:01:13.4]} 22. Re1
{[%clk 0:01:18.4]} 22... Qd5 {[%clk 0:00:52.4]} 23. Bxe7 {[%clk 0:01:15.4]}
23... Bxc3 {[%clk 0:00:37.6]} 24. Re6 {[%clk 0:00:47.5]} 0-1

[Event "*** SCC Grand Prix: Titled Tuesday Blitz"]
[Site "Chess.com"]
[Date "2020.07.14"]
[Round "9"]
[White "bazar-wokzal"]
[Black "PavelShkapenko"]
[Result "1-0"]
[WhiteElo "2469"]
[BlackElo "2589"]
[TimeControl "180+1"]
[EndTime "11:45:45 PDT"]
[Termination "bazar-wokzal won by resignation"]

1. e4 {[%clk 0:03:00.7]} 1... c5 {[%clk 0:02:56.4]} 2. c3 {[%clk 0:03:00.6]}
2... d5 {[%clk 0:02:54.5]} 3. exd5 {[%clk 0:03:00.6]} 3... Qxd5 {[%clk
0:02:55.1]} 4. d4 {[%clk 0:03:01.3]} 4... Nc6 {[%clk 0:02:55.6]} 5. Nf3 {[%clk
0:03:01.6]} 5... Bf5 {[%clk 0:02:56.1]} 6. dxc5 {[%clk 0:02:59.9]} 6... Qxd1+
{[%clk 0:02:38.1]} 7. Kxd1 {[%clk 0:02:59.2]} 7... e5 {[%clk 0:02:38.7]} 8. Be3
{[%clk 0:02:57.5]} 8... Nf6 {[%clk 0:02:34.6]} 9. Bb5 {[%clk 0:02:55.6]} 9...
Ng4 {[%clk 0:02:32.4]} 10. Bxc6+ {[%clk 0:02:49.8]} 10... bxc6 {[%clk
0:02:29.8]} 11. b4 {[%clk 0:02:50.1]} 11... O-O-O+ {[%clk 0:02:12.3]} 12. Kc1
{[%clk 0:02:47.5]} 12... Nxe3 {[%clk 0:02:10.3]} 13. fxe3 {[%clk 0:02:47.4]}
13... f6 {[%clk 0:02:11]} 14. Rd1 {[%clk 0:02:34.2]} 14... Be7 {[%clk
0:02:07.4]} 15. Na3 {[%clk 0:02:27.6]} 15... Rxd1+ {[%clk 0:01:59.4]} 16. Kxd1
{[%clk 0:02:27.5]} 16... Rd8+ {[%clk 0:02:00]} 17. Ke2 {[%clk 0:02:27]} 17...
Bg4 {[%clk 0:01:54.7]} 18. h3 {[%clk 0:02:21.7]} 18... Bh5 {[%clk 0:01:52.9]}
19. g4 {[%clk 0:02:08.1]} 19... Bf7 {[%clk 0:01:51.5]} 20. Nd2 {[%clk
0:02:04.9]} 20... h5 {[%clk 0:01:45.3]} 21. Nac4 {[%clk 0:02:03.1]} 21... Be6
{[%clk 0:01:32.1]} 22. Rg1 {[%clk 0:01:52.4]} 22... hxg4 {[%clk 0:01:30.2]} 23.
hxg4 {[%clk 0:01:52.5]} 23... Rh8 {[%clk 0:01:30.7]} 24. g5 {[%clk 0:01:45]}
24... Kd7 {[%clk 0:01:14.8]} 25. gxf6 {[%clk 0:01:43.5]} 25... gxf6 {[%clk
0:01:14.1]} 26. Rg7 {[%clk 0:01:40]} 26... Rh4 {[%clk 0:01:04.8]} 27. Nd6 {[%clk
0:01:33.6]} 27... Rh8 {[%clk 0:00:50.9]} 28. a4 {[%clk 0:01:29]} 28... Rg8
{[%clk 0:00:50]} 29. Rh7 {[%clk 0:01:24.4]} 29... f5 {[%clk 0:00:46.3]} 30. N2c4
{[%clk 0:01:19.5]} 30... Bxc4+ {[%clk 0:00:46]} 31. Nxc4 {[%clk 0:01:19.1]}
31... Ke6 {[%clk 0:00:40.6]} 32. Nxe5 {[%clk 0:01:15.2]} 32... Bf6 {[%clk
0:00:39.5]} 33. Nxc6 {[%clk 0:01:13.5]} 33... Bxc3 {[%clk 0:00:39.8]} 34. b5
{[%clk 0:01:10.7]} 34... Kd5 {[%clk 0:00:32.4]} 35. Ne7+ {[%clk 0:01:10.2]} 1-0

[Event "*** SCC Grand Prix: Titled Tuesday Blitz"]
[Site "Chess.com"]
[Date "2020.07.14"]
[Round "9"]
[White "AGW2016"]
[Black "Savva09022009"]
[Result "0-1"]
[WhiteElo "2279"]
[BlackElo "2450"]
[TimeControl "180+1"]
[EndTime "11:45:46 PDT"]
[Termination "Savva09022009 won by resignation"]

1. d4 {[%clk 0:02:03.3]} 1... Nf6 {[%clk 0:02:58.3]} 2. c4 {[%clk 0:02:00.7]}
2... e6 {[%clk 0:02:54.5]} 3. g3 {[%clk 0:01:58.4]} 3... d5 {[%clk 0:02:53.5]}
4. Nf3 {[%clk 0:01:58]} 4... dxc4 {[%clk 0:02:53]} 5. Bg2 {[%clk 0:01:57.7]}
5... a6 {[%clk 0:02:51.6]} 6. O-O {[%clk 0:01:53.8]} 6... Nc6 {[%clk 0:02:50.3]}
7. e3 {[%clk 0:01:46.2]} 7... Rb8 {[%clk 0:02:49.3]} 8. a4 {[%clk 0:01:46]} 8...
b5 {[%clk 0:02:42.2]} 9. b3 {[%clk 0:01:46.3]} 9... cxb3 {[%clk 0:02:39.1]} 10.
Qxb3 {[%clk 0:01:45.9]} 10... Be7 {[%clk 0:02:38.1]} 11. axb5 {[%clk 0:01:34.9]}
11... axb5 {[%clk 0:02:35]} 12. Nc3 {[%clk 0:01:35.5]} 12... O-O {[%clk
0:02:29.9]} 13. Rd1 {[%clk 0:01:27.8]} 13... b4 {[%clk 0:02:15.8]} 14. Na4
{[%clk 0:01:25.9]} 14... Bb7 {[%clk 0:02:11.2]} 15. Nc5 {[%clk 0:01:14]} 15...
Bxc5 {[%clk 0:02:05.5]} 16. dxc5 {[%clk 0:01:13.7]} 16... Qe7 {[%clk 0:02:06.4]}
17. Bb2 {[%clk 0:01:14]} 17... Nd7 {[%clk 0:01:55.9]} 18. Nd4 {[%clk 0:01:05]}
18... Nxc5 {[%clk 0:01:51.9]} 19. Qc4 {[%clk 0:00:59.6]} 19... Nxd4 {[%clk
0:01:46.6]} 20. Bxd4 {[%clk 0:00:59.4]} 20... Ne4 {[%clk 0:01:33.3]} 21. Ba7
{[%clk 0:00:58.9]} 21... Bd5 {[%clk 0:01:26.3]} 22. Qd4 {[%clk 0:00:28.7]} 22...
c5 {[%clk 0:01:19.5]} 23. Qd3 {[%clk 0:00:27.8]} 23... c4 {[%clk 0:01:08]} 24.
Qd4 {[%clk 0:00:27.6]} 24... Nc3 {[%clk 0:01:06.6]} 25. Bxb8 {[%clk 0:00:20.2]}
25... Ne2+ {[%clk 0:01:01.4]} 0-1

[Event "*** SCC Grand Prix: Titled Tuesday Blitz"]
[Site "Chess.com"]
[Date "2020.07.14"]
[Round "9"]
[White "sergeikim"]
[Black "IAgrest"]
[Result "1-0"]
[WhiteElo "2365"]
[BlackElo "2220"]
[TimeControl "180+1"]
[EndTime "11:45:46 PDT"]
[Termination "sergeikim won on time"]

1. d4 {[%clk 0:03:00.9]} 1... Nf6 {[%clk 0:02:58.4]} 2. c4 {[%clk 0:03:00.9]}
2... g6 {[%clk 0:02:58.8]} 3. Nc3 {[%clk 0:03:00.8]} 3... Bg7 {[%clk 0:02:59.2]}
4. e4 {[%clk 0:03:00.8]} 4... d6 {[%clk 0:02:59.8]} 5. Nge2 {[%clk 0:03:00.5]}
5... O-O {[%clk 0:02:59.9]} 6. Ng3 {[%clk 0:03:00.1]} 6... Nbd7 {[%clk
0:02:58.9]} 7. Be2 {[%clk 0:02:56.6]} 7... c5 {[%clk 0:02:52]} 8. d5 {[%clk
0:02:56.5]} 8... a6 {[%clk 0:02:51.7]} 9. a4 {[%clk 0:02:55.5]} 9... b6 {[%clk
0:02:48.3]} 10. O-O {[%clk 0:02:54.5]} 10... h5 {[%clk 0:02:47.5]} 11. Bg5
{[%clk 0:02:47.7]} 11... Rb8 {[%clk 0:02:43.7]} 12. Qd2 {[%clk 0:02:46.6]} 12...
Ne5 {[%clk 0:02:31]} 13. f4 {[%clk 0:02:44.1]} 13... Neg4 {[%clk 0:02:10.7]} 14.
h3 {[%clk 0:02:43.1]} 14... Nh6 {[%clk 0:02:06.6]} 15. e5 {[%clk 0:02:39.2]}
15... Nh7 {[%clk 0:01:48.2]} 16. Bh4 {[%clk 0:02:38.4]} 16... Nf5 {[%clk
0:01:37.2]} 17. Nxf5 {[%clk 0:02:37]} 17... Bxf5 {[%clk 0:01:37]} 18. Bd3 {[%clk
0:02:08.6]} 18... Bxd3 {[%clk 0:01:14.3]} 19. Qxd3 {[%clk 0:02:08.4]} 19... dxe5
{[%clk 0:01:00.8]} 20. f5 {[%clk 0:02:08.3]} 20... g5 {[%clk 0:00:50.1]} 21. Bg3
{[%clk 0:02:07.4]} 21... h4 {[%clk 0:00:45.2]} 22. Bh2 {[%clk 0:02:06.9]} 22...
Qd7 {[%clk 0:00:41.1]} 23. Rae1 {[%clk 0:01:58.3]} 23... b5 {[%clk 0:00:34.1]}
24. axb5 {[%clk 0:01:54.6]} 24... axb5 {[%clk 0:00:34.2]} 25. Nxb5 {[%clk
0:01:54.5]} 25... Ra8 {[%clk 0:00:19.9]} 26. Bxe5 {[%clk 0:01:52.7]} 26... Bxe5
{[%clk 0:00:17.6]} 27. Rxe5 {[%clk 0:01:52.2]} 27... Nf6 {[%clk 0:00:13.4]} 28.
Qe3 {[%clk 0:01:49.3]} 28... Nh7 {[%clk 0:00:07.3]} 29. Rxe7 {[%clk 0:01:46.9]}
29... Qd8 {[%clk 0:00:05.7]} 30. f6 {[%clk 0:01:45.1]} 30... Ra2 {[%clk
0:00:04.1]} 31. Rf5 {[%clk 0:01:39.4]} 31... Rxb2 {[%clk 0:00:03.9]} 32. Rxg5+
{[%clk 0:01:35.9]} 32... Kh8 {[%clk 0:00:04.2]} 33. Rh5 {[%clk 0:01:35.5]} 1-0

[Event "*** SCC Grand Prix: Titled Tuesday Blitz"]
[Site "Chess.com"]
[Date "2020.07.14"]
[Round "9"]
[White "KratosKrieg"]
[Black "vesalhamedinia"]
[Result "0-1"]
[WhiteElo "1957"]
[BlackElo "2182"]
[TimeControl "180+1"]
[EndTime "11:45:47 PDT"]
[Termination "vesalhamedinia won on time"]

1. e4 {[%clk 0:02:52.9]} 1... c5 {[%clk 0:03:00.2]} 2. Nf3 {[%clk 0:02:52.4]}
2... Nc6 {[%clk 0:03:00.6]} 3. Bb5 {[%clk 0:02:52.9]} 3... g6 {[%clk 0:03:00.1]}
4. Bxc6 {[%clk 0:02:51.5]} 4... dxc6 {[%clk 0:03:01]} 5. h3 {[%clk 0:02:51.4]}
5... Bg7 {[%clk 0:03:01.9]} 6. d3 {[%clk 0:02:52]} 6... Nf6 {[%clk 0:03:02.4]}
7. O-O {[%clk 0:02:52.6]} 7... Nd7 {[%clk 0:03:02.7]} 8. Nc3 {[%clk 0:02:50.1]}
8... e5 {[%clk 0:03:02.9]} 9. Be3 {[%clk 0:02:47.8]} 9... b6 {[%clk 0:03:02.8]}
10. a4 {[%clk 0:02:43]} 10... a5 {[%clk 0:03:02.7]} 11. Qd2 {[%clk 0:02:43.1]}
11... h6 {[%clk 0:03:02.5]} 12. Nh2 {[%clk 0:02:42]} 12... Nf8 {[%clk
0:03:02.6]} 13. f4 {[%clk 0:02:41.1]} 13... exf4 {[%clk 0:03:03.5]} 14. Bxf4
{[%clk 0:02:40.5]} 14... Ne6 {[%clk 0:03:04.4]} 15. Be3 {[%clk 0:02:21.8]} 15...
Nd4 {[%clk 0:03:04.1]} 16. Nf3 {[%clk 0:02:13.5]} 16... Be6 {[%clk 0:03:03.2]}
17. Rf2 {[%clk 0:01:48.4]} 17... Qe7 {[%clk 0:02:55.2]} 18. Raf1 {[%clk
0:01:44.5]} 18... O-O-O {[%clk 0:02:54.9]} 19. Ne2 {[%clk 0:01:25.4]} 19... Rd7
{[%clk 0:02:42.1]} 20. b3 {[%clk 0:00:54.2]} 20... g5 {[%clk 0:02:29.8]} 21. Ng3
{[%clk 0:00:38.7]} 21... Rg8 {[%clk 0:02:09.9]} 22. Nh5 {[%clk 0:00:31.4]} 22...
f5 {[%clk 0:01:54.4]} 23. Nxg7 {[%clk 0:00:27.6]} 23... Qxg7 {[%clk 0:01:47.4]}
24. exf5 {[%clk 0:00:17.1]} 24... Nxf5 {[%clk 0:01:46]} 25. Nh2 {[%clk
0:00:06.7]} 25... Ng3 {[%clk 0:01:39.3]} 26. Re1 {[%clk 0:00:02.8]} 26... Bd5
{[%clk 0:01:37.3]} 27. Nf3 {[%clk 0:00:01.4]} 27... g4 {[%clk 0:01:35.4]} 28.
hxg4 {[%clk 0:00:01.1]} 28... Qxg4 {[%clk 0:01:35.3]} 0-1

[Event "*** SCC Grand Prix: Titled Tuesday Blitz"]
[Site "Chess.com"]
[Date "2020.07.14"]
[Round "9"]
[White "Yoshikrov"]
[Black "Evachess2006"]
[Result "1-0"]
[WhiteElo "2096"]
[BlackElo "1610"]
[TimeControl "180+1"]
[EndTime "11:45:49 PDT"]
[Termination "Yoshikrov won on time"]

1. e4 {[%clk 0:03:00.9]} 1... e5 {[%clk 0:02:57.7]} 2. Nf3 {[%clk 0:02:58.2]}
2... Nc6 {[%clk 0:02:58.6]} 3. d4 {[%clk 0:02:58.4]} 3... exd4 {[%clk
0:02:55.5]} 4. Nxd4 {[%clk 0:02:58.4]} 4... Nxd4 {[%clk 0:02:31.8]} 5. Qxd4
{[%clk 0:02:57.7]} 5... d6 {[%clk 0:02:27.8]} 6. Nc3 {[%clk 0:02:57.4]} 6... Nf6
{[%clk 0:02:23.4]} 7. Bg5 {[%clk 0:02:56.7]} 7... Be7 {[%clk 0:02:18.6]} 8.
O-O-O {[%clk 0:02:49]} 8... O-O {[%clk 0:02:14.4]} 9. h4 {[%clk 0:02:41.6]} 9...
h6 {[%clk 0:02:08.2]} 10. Bd2 {[%clk 0:02:24.3]} 10... Be6 {[%clk 0:01:51.3]}
11. f3 {[%clk 0:02:15.5]} 11... d5 {[%clk 0:00:48.7]} 12. exd5 {[%clk 0:01:41]}
12... Nxd5 {[%clk 0:00:35]} 13. Nxd5 {[%clk 0:01:37.4]} 13... Qxd5 {[%clk
0:00:27.1]} 14. Qxd5 {[%clk 0:01:35.7]} 14... Bxd5 {[%clk 0:00:24.6]} 15. Bf4
{[%clk 0:01:33.9]} 15... c6 {[%clk 0:00:14.3]} 16. Kb1 {[%clk 0:01:28.7]} 16...
Rad8 {[%clk 0:00:11.9]} 17. Bd3 {[%clk 0:01:28.6]} 17... c5 {[%clk 0:00:09.7]}
18. g4 {[%clk 0:01:27.5]} 18... a6 {[%clk 0:00:09.1]} 19. Be2 {[%clk 0:01:24.8]}
19... Bc6 {[%clk 0:00:06]} 20. g5 {[%clk 0:01:22.8]} 20... hxg5 {[%clk
0:00:05.1]} 21. hxg5 {[%clk 0:01:20.4]} 21... f6 {[%clk 0:00:05.4]} 22. Bc4+
{[%clk 0:01:15.3]} 22... Rf7 {[%clk 0:00:02.1]} 23. g6 {[%clk 0:01:15]} 1-0

[Event "*** SCC Grand Prix: Titled Tuesday Blitz"]
[Site "Chess.com"]
[Date "2020.07.14"]
[Round "9"]
[White "Skatchkov_V"]
[Black "FatUpss"]
[Result "1-0"]
[WhiteElo "2571"]
[BlackElo "2736"]
[TimeControl "180+1"]
[EndTime "11:45:59 PDT"]
[Termination "Skatchkov_V won by resignation"]

1. d4 {[%clk 0:03:00.6]} 1... Nf6 {[%clk 0:02:59.6]} 2. c4 {[%clk 0:03:00.9]}
2... g6 {[%clk 0:03:00.1]} 3. Nf3 {[%clk 0:03:01.5]} 3... Bg7 {[%clk 0:03:01]}
4. g3 {[%clk 0:03:02.2]} 4... O-O {[%clk 0:03:01.9]} 5. Bg2 {[%clk 0:03:02.8]}
5... c6 {[%clk 0:03:02.8]} 6. O-O {[%clk 0:03:03.3]} 6... d6 {[%clk 0:03:03.7]}
7. Nc3 {[%clk 0:03:02.4]} 7... Qb6 {[%clk 0:03:04.3]} 8. e4 {[%clk 0:02:49.8]}
8... Bg4 {[%clk 0:02:59.2]} 9. b3 {[%clk 0:02:44.5]} 9... Qa5 {[%clk 0:02:58.2]}
10. Qd3 {[%clk 0:02:36.4]} 10... Nbd7 {[%clk 0:02:46.2]} 11. Bd2 {[%clk
0:02:33.8]} 11... Qh5 {[%clk 0:02:44.1]} 12. Ne1 {[%clk 0:02:05.2]} 12... Bh3
{[%clk 0:02:41]} 13. Bf3 {[%clk 0:02:00.4]} 13... Bxf1 {[%clk 0:02:35]} 14. Qxf1
{[%clk 0:01:57.3]} 14... Qa5 {[%clk 0:02:33.5]} 15. Nd3 {[%clk 0:01:43.5]} 15...
e5 {[%clk 0:02:30.3]} 16. d5 {[%clk 0:01:33.5]} 16... cxd5 {[%clk 0:02:27.9]}
17. exd5 {[%clk 0:01:32.1]} 17... Qd8 {[%clk 0:02:18.4]} 18. Re1 {[%clk
0:01:31.4]} 18... b6 {[%clk 0:02:16.7]} 19. Nb4 {[%clk 0:01:25.9]} 19... Nb8
{[%clk 0:02:01.6]} 20. Bg2 {[%clk 0:01:08.1]} 20... Ne8 {[%clk 0:01:46.2]} 21.
Nc6 {[%clk 0:00:54.9]} 21... Nxc6 {[%clk 0:01:46]} 22. dxc6 {[%clk 0:00:55.8]}
22... Nc7 {[%clk 0:01:46.1]} 23. Rd1 {[%clk 0:00:49.3]} 23... Ne6 {[%clk
0:01:40.4]} 24. Be3 {[%clk 0:00:42.6]} 24... Nd4 {[%clk 0:01:38.8]} 25. c7
{[%clk 0:00:32]} 25... Qxc7 {[%clk 0:01:38.5]} 26. Bxd4 {[%clk 0:00:32.9]} 26...
exd4 {[%clk 0:01:37.1]} 27. Nb5 {[%clk 0:00:32.1]} 27... Qc5 {[%clk 0:01:36.3]}
28. Bxa8 {[%clk 0:00:31.1]} 28... a6 {[%clk 0:01:20.3]} 29. Nxd4 {[%clk
0:00:17.7]} 29... Bxd4 {[%clk 0:01:21.2]} 30. Bd5 {[%clk 0:00:18.3]} 30... Kg7
{[%clk 0:01:12]} 31. b4 {[%clk 0:00:17.7]} 1-0